[Event "NED-ch U16 Youth 2019"]
[Site "Assen"]
[Date "2019.04.28"]
[Round "1.1"]
[White "Hilwerda, Jonas"]
[Black "Albertus, Bram"]
[Result "1-0"]
[ECO "B47"]
[WhiteElo "2312"]
[BlackElo "1887"]
[Annotator "NA"]
[PlyCount "75"]
[EventDate "2019.04.28"]
[EventType "swiss"]
[EventCountry "NED"]
[SourceTitle "playchess.com"]
[Source "ChessBase"]
[SourceQuality "1"]
[TimeControl "40/5400+30:1800+30"]

1. e4 {[%emt 0:00:00]} c5 {[%emt 0:00:00]} 2. Nf3 {[%emt 0:00:00]} e6 {[%emt 0:00:00]} 3. d4 {[%emt 0:00:00]} cxd4 {[%emt 0:00:06]} 4. Nxd4 {[%emt 0:00:00]} Nc6 {[%emt 0:00:17]} 5. Nc3 {[%emt 0:00:00]} Qc7 {[%emt 0:00:14]} 6. g3 {[%emt 0:00:00]} a6 {[%emt 0:00:35]} 7. Bg2 {[%emt 0:02:15]} Nf6 {[%emt 0:00:08]} 8. O-O {[%emt 0:00:21]} Be7 {[%emt 0:05:09]} 9. Re1 {[%emt 0:00:30]} O-O {[%emt 0:21:29] B47: Sicilian: Taimanov: 5 Nc3 Qc7 6 f4, 6 g3 and 6 Be2} 10. Nxc6 {[%emt 0:00:44]} dxc6 {[%emt 0:01:44]} 11. f4 {[%emt 0:02:20]} (11. e5 Rd8 12. Qe2 Nd5 {½-½ (12) Mamedov,R (2708)-Andreikin,D (2702) Minsk 2018}) 11... e5 {[%emt 0:11:46]} 12. f5 {[%emt 0:03:00]} Rd8 $146 {[%emt 0:06:23]} ({Predecessor:} 12... b5 13. Qf3 h6 14. Nd1 c5 15. Nf2 Bb7 16. h4 c4 17. Kh2 Rfd8 18. g4 Nh7 19. Qg3 f6 20. Be3 Bc5 21. Rad1 Qb6 22. Bxc5 Qxc5 23. Nh3 Rd6 24. Qf2 {½-½ (24) Romero Holmes,A (2440)-Rodriguez Vargas,O (2445) Spain 1993}) 13. Qf3 {[%emt 0:02:55]} b5 {[%emt 0:04:37]} 14. Be3 {[%emt 0:02:59]} Bb7 {[%emt 0:08:17]} 15. g4 {[%emt 0:02:19]} b4 {[%emt 0:08:14]} 16. Ne2 {[%emt 0:01:40]} c5 {[%emt 0:00:52]} 17. Ng3 {[%emt 0:00:39]} Ne8 {[%emt 0:01:57]} 18. g5 {[%emt 0:12:03]} f6 {[%emt 0:01:04]} 19. h4 {[%emt 0:03:40]} c4 {[%emt 0:11:48]} 20. Kh1 {[%emt 0:04:07]} a5 {[%emt 0:05:25]} 21. Nh5 {[%emt 0:05:24]} Ra6 {[%emt 0:05:08]} 22. Qg4 {[%emt 0:02:23]} Rad6 $11 {[%emt 0:04:53]} 23. Bf3 {[%emt 0:01:15]} R6d7 {[%emt 0:00:49]} 24. Rg1 {[%emt 0:00:59]} Qc6 {[%emt 0:00:32]} 25. Rg2 {[%emt 0:01:27]} Rc8 {[%emt 0:00:30]} 26. Rag1 {[%emt 0:00:19]} Rcc7 {[%emt 0:00:04]} 27. Qg3 {[%emt 0:06:05]} a4 {[%emt 0:00:55]} 28. gxf6 {[%emt 0:09:13]} Bxf6 {[%emt 0:00:15]} 29. Bg5 {[%emt 0:00:34]} b3 {[%emt 0:00:47]} 30. Bxf6 {[%emt 0:00:43]} Nxf6 {[%emt 0:00:22]} 31. Qxe5 {[%emt 0:00:02]} Re7 {[%emt 0:00:38]} 32. Qxf6 {[%emt 0:01:40]} Qxf6 {[%emt 0:00:13]} 33. Nxf6+ {[%emt 0:00:02]} Kf7 {[%emt 0:00:41]} 34. Nxh7 {[%emt 0:00:20]} bxa2 {[%emt 0:00:35]} 35. Rxg7+ {[%emt 0:01:30]} Ke8 {[%emt 0:00:14]} 36. Nf6+ {[%emt 0:01:29]} Kf8 {[%emt 0:00:22]} 37. Rg8+ {[%emt 0:01:03]} Kf7 {[%emt 0:00:23]} 38. Nh7 {[%emt 0:00:11]} 1-0

[Event "NED-ch U16 Youth 2019"]
[Site "Assen"]
[Date "2019.04.28"]
[Round "1.2"]
[White "Cchung, Chi Yun"]
[Black "Bruil, Rembrandt"]
[Result "0-1"]
[ECO "B38"]
[WhiteElo "1836"]
[BlackElo "2178"]
[Annotator "NA"]
[PlyCount "97"]
[EventDate "2019.04.28"]
[EventType "swiss"]
[EventCountry "NED"]
[SourceTitle "playchess.com"]
[Source "ChessBase"]
[SourceQuality "1"]
[TimeControl "40/5400+30:1800+30"]

1. e4 {[%emt 0:00:00]} c5 {[%emt 0:00:00]} 2. Nf3 {[%emt 0:00:00]} Nc6 {[%emt 0:00:00]} 3. d4 {[%emt 0:00:00]} cxd4 {[%emt 0:00:00]} 4. Nxd4 {[%emt 0:00:00]} g6 {[%emt 0:00:00]} 5. c4 {[%emt 0:00:13]} Bg7 {[%emt 0:00:00]} 6. Be3 {[%emt 0:00:07]} Nf6 {[%emt 0:00:00]} 7. Nc3 {[%emt 0:00:15]} O-O {[%emt 0:00:04]} 8. Be2 {[%emt 0:00:27]} d6 {[%emt 0:00:08]} 9. O-O {[%emt 0:00:46]} Bd7 {[%emt 0:00:06]} 10. Qd2 {[%emt 0:06:07]} Nxd4 {[%emt 0:00:07]} 11. Bxd4 {[%emt 0:00:07]} Bc6 {[%emt 0:00:03]} 12. f3 {[%emt 0:04:34]} a5 {[%emt 0:08:22]} 13. b3 {[%emt 0:11:28]} Nd7 {[%emt 0:00:15]} 14. Be3 {[%emt 0:09:12]} Nc5 {[%emt 0:01:01]} 15. Rac1 {[%emt 0:09:05]} e6 {[%emt 0:00:22]} 16. Rfd1 {[%emt 0:03:30]} Be5 {[%emt 0:00:41]} 17. Bh6 {[%emt 0:21:11]} Re8 {[%emt 0:19:16]} 18. Nb5 {[%emt 0:09:11]} Qe7 {[%emt 0:44:09]} 19. Bg5 {[%emt 0:03:26]} f6 {[%emt 0:00:09]} 20. Be3 {[%emt 0:00:39]} Bxb5 {[%emt 0:06:02]} 21. cxb5 {[%emt 0:00:20]} f5 {[%emt 0:00:18]} 22. exf5 {[%emt 0:01:38]} gxf5 {[%emt 0:00:16]} 23. Bf4 {[%emt 0:04:30]} Bxf4 {[%emt 0:03:33]} 24. Qxf4 {[%emt 0:00:06]} Rad8 {[%emt 0:01:12]} 25. b6 {[%emt 0:05:30]} Kh8 {[%emt 0:03:32]} 26. a3 {[%emt 0:04:52]} Nxb3 {[%emt 0:09:58]} 27. Rc7 {[%emt 0:00:05]} Rd7 {[%emt 0:00:15]} 28. Rxd7 {[%emt 0:02:49]} Qxd7 {[%emt 0:00:04]} 29. Bc4 {[%emt 0:02:53]} e5 {[%emt 0:02:20]} 30. Qh6 {[%emt 0:00:23]} Nd4 {[%emt 0:00:06]} 31. Qf6+ {[%emt 0:00:19]} Qg7 {[%emt 0:00:03]} 32. Qxg7+ {[%emt 0:00:44]} Kxg7 {[%emt 0:00:12]} 33. Bd5 {[%emt 0:00:06]} Re7 {[%emt 0:02:08]} 34. Kf2 {[%emt 0:00:15]} Nb5 {[%emt 0:00:58]} 35. Rd3 {[%emt 0:01:19]} Kf6 {[%emt 0:00:16]} 36. a4 {[%emt 0:00:18]} Nd4 {[%emt 0:00:22]} 37. Rc3 {[%emt 0:00:04]} Ne6 {[%emt 0:00:54]} 38. Rc8 {[%emt 0:00:52]} Nc5 {[%emt 0:00:29]} 39. Rc7 {[%emt 0:00:40]} Nxa4 {[%emt 0:00:27]} 40. Rxb7 {[%emt 0:00:42]} Rxb7 {[%emt 0:00:07]} 41. Bxb7 {[%emt 0:30:04]} Nxb6 {[%emt 0:30:03]} 42. Ke3 {[%emt 0:00:00]} d5 {[%emt 0:00:00]} 43. g3 {[%emt 0:00:00]} a4 {[%emt 0:00:00]} 44. Kd3 {[%emt 0:00:00]} e4+ {[%emt 0:00:00]} 45. fxe4 {[%emt 0:00:00]} fxe4+ {[%emt 0:00:00]} 46. Kd4 {[%emt 0:00:00]} a3 {[%emt 0:00:00]} 47. Kc3 {[%emt 0:00:00]} e3 {[%emt 0:00:00]} 48. Ba6 {[%emt 0:00:00]} Nc4 {[%emt 0:00:00]} 49. Kd4 {[%emt 0:00:39] Ke5+} 0-1

[Event "NED-ch U16 Youth 2019"]
[Site "Assen"]
[Date "2019.04.28"]
[Round "1.3"]
[White "Elgersma, Onno"]
[Black "Gevorkjan, Lewon"]
[Result "1-0"]
[ECO "C11"]
[WhiteElo "2174"]
[BlackElo "1808"]
[Annotator "NA"]
[PlyCount "69"]
[EventDate "2019.04.28"]
[EventType "swiss"]
[EventCountry "NED"]
[SourceTitle "playchess.com"]
[Source "ChessBase"]
[SourceQuality "1"]
[TimeControl "40/5400+30:1800+30"]

1. e4 {[%emt 0:00:00]} e6 {[%emt 0:00:00]} 2. d4 {[%emt 0:00:02]} d5 {[%emt 0:00:00]} 3. Nc3 {[%emt 0:00:26]} Nf6 {[%emt 0:00:12]} 4. e5 {[%emt 0:00:47]} Nfd7 {[%emt 0:00:17]} 5. f4 {[%emt 0:00:26]} a6 {[%emt 0:01:16]} 6. Nf3 {[%emt 0:01:26]} c5 {[%emt 0:00:26]} 7. Be3 {[%emt 0:00:37]} cxd4 {[%emt 0:00:39]} 8. Nxd4 {[%emt 0:00:55]} Nc6 {[%emt 0:00:36]} 9. Qd2 {[%emt 0:02:06]} Nxd4 {[%emt 0:04:58]} 10. Bxd4 {[%emt 0:02:03]} Be7 {[%emt 0:00:30] C11: French: Classical System: 4 e5 and 4 Bg5 dxe4} (10... b5 11. O-O-O Be7 12. Kb1 Bb7 13. Bd3 Nc5 14. Qf2 Nxd3 15. cxd3 Qd7 16. Ne2 O-O 17. g4 b4 18. f5 {1-0 (36) Naiditsch,A (2697)-Kovalyov,A (2557) Montreal 2009}) 11. Bd3 {[%emt 0:05:10]} b6 $146 {[%emt 0:02:52]} ({Predecessor:} 11... Nb6 12. b3 Nd7 13. Qe3 f5 14. Be2 Qa5 15. Qd2 Nc5 16. Bxc5 Bxc5 {½-½ (68) Machado,W (1170)-Marino,F (1722) Caioba 2017}) 12. O-O {[%emt 0:09:00]} g6 {[%emt 0:06:15]} 13. Nd1 {[%emt 0:09:22]} Nc5 {[%emt 0:00:31]} 14. Ne3 {[%emt 0:02:18]} Nxd3 {[%emt 0:01:22]} 15. Qxd3 {[%emt 0:01:48]} h5 {[%emt 0:08:52]} 16. Rfd1 {[%emt 0:01:37]} b5 {[%emt 0:21:54]} 17. c3 {[%emt 0:06:04]} Bd7 {[%emt 0:06:10]} 18. Nxd5 {[%emt 0:13:51]} Bc6 {[%emt 0:08:15]} 19. Ne3 {[%emt 0:04:46]} Qc7 {[%emt 0:03:45]} 20. Rac1 $14 {[%emt 0:02:34]} Qb7 {[%emt 0:05:01]} 21. Qe2 {[%emt 0:07:39]} Rd8 {[%emt 0:08:01]} 22. Rd2 {[%emt 0:02:50]} O-O {[%emt 0:01:29]} 23. Rf1 {[%emt 0:02:30]} Be4 {[%emt 0:01:48]} 24. h3 {[%emt 0:03:42]} Qc6 {[%emt 0:04:15]} 25. Qf2 {[%emt 0:04:23]} f5 {[%emt 0:07:27]} 26. exf6 {[%emt 0:00:46]} Bxf6 {[%emt 0:00:15]} 27. Bxf6 {[%emt 0:02:20]} Rxd2 {[%emt 0:00:02]} 28. Qxd2 {[%emt 0:00:12]} Rxf6 {[%emt 0:00:04]} 29. Qd4 {[%emt 0:03:16]} Rf8 {[%emt 0:03:35]} 30. Rd1 {[%emt 0:01:39]} Bf5 {[%emt 0:02:05]} 31. Qe5 {[%emt 0:01:20]} Qc8 {[%emt 0:00:59]} 32. g4 {[%emt 0:00:23]} hxg4 {[%emt 0:01:12]} 33. hxg4 {[%emt 0:00:03]} Bc2 {[%emt 0:00:32]} 34. Nxc2 {[%emt 0:00:16]} Qc4 {[%emt 0:00:37]} 35. Rd7 {[%emt 0:01:09]} 1-0

[Event "NED-ch U16 Youth 2019"]
[Site "Assen"]
[Date "2019.04.28"]
[Round "1.4"]
[White "Van der Schaaf, Tristan"]
[Black "Maters, Arthur"]
[Result "1/2-1/2"]
[ECO "D85"]
[WhiteElo "1807"]
[BlackElo "2043"]
[Annotator "NA"]
[PlyCount "81"]
[EventDate "2019.04.28"]
[EventType "swiss"]
[EventCountry "NED"]
[SourceTitle "playchess.com"]
[Source "ChessBase"]
[SourceQuality "1"]
[TimeControl "40/5400+30:1800+30"]

1. d4 {[%emt 0:00:00]} Nf6 {[%emt 0:00:00]} 2. c4 {[%emt 0:00:00]} g6 {[%emt 0:00:00]} 3. Nc3 {[%emt 0:00:00]} d5 {[%emt 0:00:00]} 4. cxd5 {[%emt 0:00:08]} Nxd5 {[%emt 0:00:00]} 5. e4 {[%emt 0:00:10]} Nxc3 {[%emt 0:00:00]} 6. bxc3 {[%emt 0:00:06]} Bg7 {[%emt 0:00:00]} 7. Nf3 {[%emt 0:00:20]} c5 {[%emt 0:00:02]} 8. Be2 {[%emt 0:00:51]} O-O {[%emt 0:00:12]} 9. O-O {[%emt 0:00:05]} Bg4 {[%emt 0:00:16]} 10. Bb2 {[%emt 0:01:46]} Nc6 {[%emt 0:02:11]} 11. d5 {[%emt 0:08:21] D85: Exchange Grünfeld: Unusual White 7th moves and lines with 7 Nf3} Ne5 {[%emt 0:02:51]} 12. Nxe5 {[%emt 0:02:18]} Bxe2 {[%emt 0:00:07]} 13. Qxe2 {[%emt 0:00:21]} Bxe5 {[%emt 0:00:06]} 14. f4 {[%emt 0:01:16]} Bg7 {[%emt 0:02:52]} 15. c4 {[%emt 0:00:48]} Bxb2 {[%emt 0:04:07]} 16. Qxb2 {[%emt 0:00:06]} Qb6 $146 {[%emt 0:00:05]} ({Predecessor:} 16... Qd7 17. a4 b6 18. Qb5 Rfd8 19. Qxd7 Rxd7 {½-½ (33) Souttre,M (1490)-Herrero,A (1774) St Chely d'Aubrac 2011}) 17. Qxb6 {[%emt 0:02:36]} axb6 {[%emt 0:00:04]} 18. a4 {[%emt 0:06:18]} Ra6 {[%emt 0:00:48]} 19. Rf3 {[%emt 0:02:54]} Rfa8 {[%emt 0:02:16]} 20. Rfa3 {[%emt 0:00:17]} Kg7 {[%emt 0:19:51]} 21. g4 {[%emt 0:25:56]} e6 {[%emt 0:14:13]} 22. Kf2 {[%emt 0:08:21]} exd5 {[%emt 0:01:43]} 23. exd5 {[%emt 0:00:07]} f5 {[%emt 0:00:39]} 24. gxf5 {[%emt 0:01:06]} gxf5 {[%emt 0:00:09]} 25. Rg1+ {[%emt 0:16:15]} Kf6 {[%emt 0:00:18]} 26. Rh3 {[%emt 0:01:18]} Rh8 {[%emt 0:04:54]} 27. Rh6+ {[%emt 0:02:30]} Kf7 {[%emt 0:01:58]} 28. Rg5 $18 {[%emt 0:01:22]} Rxa4 {[%emt 0:00:40]} 29. Rxf5+ {[%emt 0:00:06]} Kg7 {[%emt 0:00:15]} 30. Rxb6 {[%emt 0:00:06]} Rb8 {[%emt 0:02:17]} 31. Rg5+ {[%emt 0:06:11]} Kh8 {[%emt 0:00:32]} 32. d6 {[%emt 0:00:30]} Rxc4 {[%emt 0:00:42]} 33. Ke3 {[%emt 0:02:51]} Ra8 {[%emt 0:04:27]} 34. Rd5 {[%emt 0:03:03]} Ra3+ {[%emt 0:01:08]} 35. Kd2 {[%emt 0:01:24]} Raa4 {[%emt 0:07:01]} 36. Rxb7 {[%emt 0:02:15]} Rd4+ {[%emt 0:00:31]} 37. Rxd4 {[%emt 0:00:25]} Rxd4+ {[%emt 0:00:06]} 38. Ke3 {[%emt 0:00:10]} Rxd6 {[%emt 0:00:06]} 39. Rc7 {[%emt 0:00:15]} Rd5 {[%emt 0:00:27]} 40. Ke4 {[%emt 0:00:33]} Rh5 {[%emt 0:00:05]} 41. f5 {[%emt 0:30:59]} 1/2-1/2

[Event "NED-ch U16 Youth 2019"]
[Site "Assen"]
[Date "2019.04.28"]
[Round "1.5"]
[White "Honkoop, Gilian"]
[Black "Roothaan, Elmar"]
[Result "1/2-1/2"]
[ECO "D00"]
[WhiteElo "2038"]
[BlackElo "1711"]
[Annotator "NA"]
[PlyCount "115"]
[EventDate "2019.04.28"]
[EventType "swiss"]
[EventCountry "NED"]
[SourceTitle "playchess.com"]
[Source "ChessBase"]
[SourceQuality "1"]
[TimeControl "40/5400+30:1800+30"]

1. d4 {[%emt 0:00:00]} d5 {[%emt 0:00:40]} 2. Bf4 {[%emt 0:00:00]} Bg4 {[%emt 0:00:17]} 3. c4 {[%emt 0:08:46]} e6 {[%emt 0:00:25]} 4. Qb3 {[%emt 0:05:24]} b6 {[%emt 0:01:35]} 5. Nc3 {[%emt 0:09:10]} c6 {[%emt 0:01:43]} 6. g3 {[%emt 0:04:49]} Bd6 {[%emt 0:01:56]} 7. Bxd6 {[%emt 0:01:02]} Qxd6 {[%emt 0:00:16]} 8. Bg2 {[%emt 0:00:07]} Nf6 {[%emt 0:00:31]} 9. Nf3 {[%emt 0:00:48]} Nbd7 {[%emt 0:00:52]} 10. O-O {[%emt 0:00:36]} O-O {[%emt 0:00:55]} 11. Rfd1 {[%emt 0:07:01]} Rfe8 {[%emt 0:03:51]} 12. Rac1 {[%emt 0:04:36]} Rac8 {[%emt 0:01:26]} 13. Qc2 {[%emt 0:06:36]} Qc7 {[%emt 0:02:26]} 14. cxd5 {[%emt 0:06:35]} exd5 {[%emt 0:01:23]} 15. b4 {[%emt 0:03:19]} Qd6 {[%emt 0:03:44]} 16. Qa4 {[%emt 0:07:54]} b5 {[%emt 0:11:24]} 17. Qb3 {[%emt 0:01:37]} a6 {[%emt 0:05:32]} 18. a4 {[%emt 0:04:21]} Ne4 {[%emt 0:16:09]} 19. Nxe4 {[%emt 0:09:14]} dxe4 {[%emt 0:00:27]} 20. Ng5 {[%emt 0:02:59]} Qg6 {[%emt 0:03:17]} 21. Nxe4 {[%emt 0:06:01]} Bxe2 {[%emt 0:00:19]} 22. Re1 {[%emt 0:01:22]} Bc4 {[%emt 0:03:57]} 23. Qf3 {[%emt 0:02:28]} Bd5 {[%emt 0:00:21]} 24. Qf4 {[%emt 0:00:13]} Re6 {[%emt 0:02:21]} 25. Re3 {[%emt 0:03:12]} Rce8 {[%emt 0:00:46]} 26. Rce1 {[%emt 0:00:44]} h6 {[%emt 0:01:45]} 27. h4 {[%emt 0:00:18]} h5 {[%emt 0:02:19]} 28. axb5 {[%emt 0:01:21]} axb5 {[%emt 0:00:05]} 29. f3 {[%emt 0:02:41]} f5 {[%emt 0:02:20]} 30. Ng5 {[%emt 0:00:57]} Rxe3 {[%emt 0:00:04]} 31. Rxe3 {[%emt 0:00:02]} Rxe3 {[%emt 0:00:07]} 32. Qxe3 {[%emt 0:00:09]} Qd6 {[%emt 0:00:13]} 33. Qe8+ {[%emt 0:01:18]} Nf8 {[%emt 0:00:05]} 34. f4 {[%emt 0:00:24]} Bc4 {[%emt 0:00:21]} 35. Qxc6 {[%emt 0:00:37]} Qxd4+ {[%emt 0:00:11]} 36. Kh2 {[%emt 0:00:01]} Qd7 {[%emt 0:01:28]} 37. Qf3 {[%emt 0:00:43]} g6 {[%emt 0:00:23]} 38. Qc3 {[%emt 0:00:23]} Qd6 {[%emt 0:01:24]} 39. Qa3 {[%emt 0:00:46]} Qd2 {[%emt 0:01:39]} 40. Nf3 {[%emt 0:00:18]} Qf2 {[%emt 0:00:55]} 41. Qa8 {[%emt 0:07:43]} Bf1 {[%emt 0:09:57]} 42. Ne5 {[%emt 0:00:14]} Qxg2+ {[%emt 0:00:15]} 43. Qxg2 {[%emt 0:00:03]} Bxg2 {[%emt 0:00:01]} 44. Kxg2 {[%emt 0:00:10]} Kg7 {[%emt 0:00:11]} 45. Kf3 {[%emt 0:01:10]} Kf6 {[%emt 0:00:01]} 46. Ke3 {[%emt 0:00:12]} Ke6 {[%emt 0:00:34]} 47. Kd4 {[%emt 0:04:57]} Kd6 {[%emt 0:00:02]} 48. Kc3 {[%emt 0:02:20]} Ke6 {[%emt 0:05:20]} 49. Kd4 {[%emt 0:01:52]} Kd6 {[%emt 0:00:08]} 50. Kd3 {[%emt 0:05:58]} Kd5 {[%emt 0:01:02]} 51. Ke3 {[%emt 0:00:11]} Kd6 {[%emt 0:05:53]} 52. Kd4 {[%emt 0:09:15]} Ne6+ {[%emt 0:00:01]} 53. Kd3 {[%emt 0:00:05]} Nf8 {[%emt 0:00:07]} 54. Nf3 {[%emt 0:00:32]} Ne6 {[%emt 0:01:00]} 55. Ne5 {[%emt 0:01:33]} Nf8 {[%emt 0:00:06]} 56. Nf7+ {[%emt 0:00:10]} Ke6 {[%emt 0:00:40]} 57. Nd8+ {[%emt 0:01:10]} Kd7 {[%emt 0:00:07]} 58. Nf7 {[%emt 0:01:26]} 1/2-1/2

[Event "NED-ch U16 Youth 2019"]
[Site "Assen"]
[Date "2019.04.28"]
[Round "1.6"]
[White "Albers, Sasa"]
[Black "Grutter, Tim"]
[Result "1/2-1/2"]
[ECO "B22"]
[WhiteElo "1690"]
[BlackElo "2029"]
[Annotator "NA"]
[PlyCount "102"]
[EventDate "2019.04.28"]
[EventType "swiss"]
[EventCountry "NED"]
[SourceTitle "playchess.com"]
[Source "ChessBase"]
[SourceQuality "1"]
[TimeControl "40/5400+30:1800+30"]

1. e4 {[%emt 0:00:00]} c5 {[%emt 0:00:00]} 2. Nf3 {[%emt 0:00:00]} e6 {[%emt 0:00:00]} 3. c3 {[%emt 0:00:00]} Nf6 {[%emt 0:00:42]} 4. e5 {[%emt 0:00:00]} Nd5 {[%emt 0:00:04]} 5. d4 {[%emt 0:00:00]} cxd4 {[%emt 0:00:21]} 6. cxd4 {[%emt 0:00:01]} Nc6 {[%emt 0:00:28]} 7. a3 {[%emt 0:00:08]} d6 {[%emt 0:00:35]} 8. Bc4 {[%emt 0:00:36]} Nb6 {[%emt 0:00:35]} 9. Bd3 {[%emt 0:00:01]} Be7 {[%emt 0:01:49]} 10. O-O {[%emt 0:00:23]} g5 {[%emt 0:07:27]} 11. exd6 {[%emt 0:04:45]} Qxd6 {[%emt 0:01:44]} 12. Bxg5 {[%emt 0:01:35]} Bxg5 {[%emt 0:02:39]} 13. Nxg5 {[%emt 0:00:16]} Qxd4 {[%emt 0:02:15]} 14. Nc3 {[%emt 0:02:27]} a6 {[%emt 0:10:13]} 15. Nf3 {[%emt 0:09:47]} Qf4 {[%emt 0:03:52]} 16. Re1 {[%emt 0:05:00]} Bd7 {[%emt 0:06:12]} 17. Qb3 {[%emt 0:01:23]} Qc7 {[%emt 0:00:56]} 18. a4 {[%emt 0:05:41]} O-O-O {[%emt 0:04:37]} 19. a5 {[%emt 0:01:58]} Nd5 {[%emt 0:02:13]} 20. Nxd5 {[%emt 0:04:25]} exd5 {[%emt 0:00:11]} 21. Qxd5 {[%emt 0:08:39]} Be6 {[%emt 0:04:09]} 22. Qe4 {[%emt 0:01:07]} Bd5 {[%emt 0:13:05]} 23. Qg4+ {[%emt 0:08:17]} Kb8 {[%emt 0:00:51]} 24. Be4 {[%emt 0:01:59]} Rhg8 {[%emt 0:02:31]} 25. Qh5 {[%emt 0:07:35]} Bxe4 {[%emt 0:12:39]} 26. Rxe4 {[%emt 0:00:03]} f5 {[%emt 0:01:51]} 27. Qxf5 {[%emt 0:11:28]} Qg7 {[%emt 0:04:17]} 28. g3 {[%emt 0:02:35]} Qxb2 {[%emt 0:01:41]} 29. Qf4+ {[%emt 0:11:05]} Ka8 {[%emt 0:00:23]} 30. Rea4 {[%emt 0:00:49]} Rgf8 {[%emt 0:01:18]} 31. Qg4 {[%emt 0:06:19]} Ne5 {[%emt 0:04:31]} 32. Nxe5 {[%emt 0:00:01]} Qxf2+ {[%emt 0:01:03]} 33. Kh1 {[%emt 0:00:02]} Rd2 {[%emt 0:00:25]} 34. Qh3 {[%emt 0:00:22]} Qe2 {[%emt 0:09:28]} 35. Rf4 {[%emt 0:02:24]} Rfd8 {[%emt 0:00:24]} 36. Nf3 {[%emt 0:01:17]} Rb2 {[%emt 0:01:26]} 37. Qf1 {[%emt 0:02:05]} Qc2 {[%emt 0:01:01]} 38. Rc1 {[%emt 0:00:02]} Qb3 {[%emt 0:00:20]} 39. Rfc4 {[%emt 0:01:37]} Qe3 {[%emt 0:00:42]} 40. Rc8+ {[%emt 0:00:33]} Rxc8 {[%emt 0:00:10]} 41. Rxc8+ {[%emt 0:30:02]} Ka7 {[%emt 0:30:00]} 42. Qg1 {[%emt 0:00:08]} Qxg1+ {[%emt 0:00:00]} 43. Kxg1 {[%emt 0:00:00]} Rb5 {[%emt 0:00:00]} 44. g4 {[%emt 0:00:00]} Rxa5 {[%emt 0:00:00]} 45. g5 {[%emt 0:00:00]} Rf5 {[%emt 0:00:00]} 46. Kf2 {[%emt 0:00:00]} Rf7 {[%emt 0:00:00]} 47. h4 {[%emt 0:00:00]} a5 {[%emt 0:00:00]} 48. h5 {[%emt 0:00:00]} a4 {[%emt 0:00:00]} 49. g6 {[%emt 0:00:00]} hxg6 {[%emt 0:00:00]} 50. hxg6 {[%emt 0:00:00]} Rg7 {[%emt 0:00:00]} 51. Ne5 {[%emt 0:00:00]} b5 {[%emt 0:00:00]} 1/2-1/2

[Event "NED-ch U16 Youth 2019"]
[Site "Assen"]
[Date "2019.04.28"]
[Round "1.7"]
[White "Shakhverdian, William"]
[Black "Broersma, Sven"]
[Result "1-0"]
[ECO "B76"]
[WhiteElo "1949"]
[BlackElo "1617"]
[Annotator "NA"]
[PlyCount "85"]
[EventDate "2019.04.28"]
[EventType "swiss"]
[EventCountry "NED"]
[SourceTitle "playchess.com"]
[Source "ChessBase"]
[SourceQuality "1"]
[TimeControl "40/5400+30:1800+30"]

1. e4 {[%emt 0:00:00]} c5 {[%emt 0:00:00]} 2. Nf3 {[%emt 0:00:00]} d6 {[%emt 0:00:00]} 3. d4 {[%emt 0:00:14]} cxd4 {[%emt 0:00:00]} 4. Nxd4 {[%emt 0:00:06]} Nf6 {[%emt 0:00:00]} 5. Nc3 {[%emt 0:00:05]} g6 {[%emt 0:00:02]} 6. f3 {[%emt 0:01:08]} Bg7 {[%emt 0:00:10]} 7. Be3 {[%emt 0:00:05]} O-O {[%emt 0:00:09]} 8. Qd2 {[%emt 0:00:33]} Nc6 {[%emt 0:00:09]} 9. O-O-O {[%emt 0:00:06]} d5 {[%emt 0:00:07]} 10. Qe1 {[%emt 0:00:06]} e5 {[%emt 0:00:09]} 11. Nxc6 {[%emt 0:00:07]} bxc6 {[%emt 0:00:06]} 12. exd5 {[%emt 0:09:58]} Nxd5 {[%emt 0:00:36]} 13. Bc4 {[%emt 0:02:16]} Be6 {[%emt 0:00:09]} 14. g4 {[%emt 0:01:29]} h6 {[%emt 0:05:38]} 15. h4 {[%emt 0:02:40]} a5 {[%emt 0:30:38]} 16. g5 {[%emt 0:22:16]} h5 {[%emt 0:01:10]} 17. Bc5 {[%emt 0:06:32]} Re8 {[%emt 0:01:44]} 18. Ne4 {[%emt 0:01:03]} Qc7 {[%emt 0:01:17]} 19. Rh2 {[%emt 0:09:25]} Red8 {[%emt 0:05:15]} 20. Rhd2 {[%emt 0:01:09]} Rd7 {[%emt 0:12:08]} 21. Qf2 {[%emt 0:13:04]} Rb8 {[%emt 0:04:47]} 22. Bb3 {[%emt 0:02:38]} Ra8 {[%emt 0:15:27]} 23. c4 {[%emt 0:02:13]} Nf4 {[%emt 0:03:55]} 24. Rxd7 {[%emt 0:00:25]} Bxd7 {[%emt 0:00:16]} 25. Bb6 {[%emt 0:07:17]} Qb7 {[%emt 0:01:56]} 26. Nd6 {[%emt 0:01:50]} Qa6 {[%emt 0:00:52]} 27. c5 {[%emt 0:05:58]} Nd3+ {[%emt 0:02:12]} 28. Rxd3 {[%emt 0:00:15]} Qxd3 {[%emt 0:00:03]} 29. Bxf7+ {[%emt 0:03:27]} Kh7 {[%emt 0:00:37]} 30. Bc4 {[%emt 0:00:21]} Qd4 {[%emt 0:00:25]} 31. Qxd4 {[%emt 0:01:12]} exd4 {[%emt 0:00:01]} 32. Bd3 {[%emt 0:00:11]} Be6 {[%emt 0:02:23]} 33. Be4 {[%emt 0:00:49]} Bd5 {[%emt 0:00:56]} 34. Bxd5 {[%emt 0:00:52]} cxd5 {[%emt 0:00:02]} 35. c6 {[%emt 0:04:40]} Be5 {[%emt 0:01:36]} 36. Nb5 {[%emt 0:01:24]} Rb8 {[%emt 0:00:45]} 37. Bc7 {[%emt 0:01:09]} Bxc7 {[%emt 0:01:08]} 38. Nxc7 {[%emt 0:00:06]} Rc8 {[%emt 0:00:07]} 39. Nxd5 {[%emt 0:00:05]} Rxc6+ {[%emt 0:00:06]} 40. Kd2 {[%emt 0:00:06]} Rd6 {[%emt 0:01:37]} 41. Nf4 {[%emt 0:30:10]} Rd7 {[%emt 0:31:42]} 42. Ne6 {[%emt 0:00:00]} Rd6 {[%emt 0:05:38]} 43. Nf4 {[%emt 0:00:00]} 1-0